fUSD/lending_fUSD_20260602
["ID","MTS","AMOUNT","RATE_DAILY","PERIOD"]
[423742083,1780362870000,311.6631817,0.00025566,120]
[423742084,1780362871000,311.6631817,0.00025708,120]
[423742085,1780362902000,-2895.996514,0.00011779,2]
[423742086,1780362917000,-500.0,0.00011839,2]
[423742087,1780362956000,-157.26509766,0.0001174,2]
[423742088,1780363009000,-5730.95119157,0.0001174,2]
[423742090,1780363062000,-152.0,0.00011081,7]
[423742093,1780363348000,-5353.05,0.00010636,2]
[423742096,1780363401000,-195.64,0.00010651,2]
[423742097,1780363416000,-500.0,0.00010597,2]
[423742098,1780363453000,-1000.0,0.00010541,2]
[423742100,1780363479000,571.09,0.00030136,120]
[423742099,1780363479000,1852.42,0.00010442,2]
[423742101,1780363507000,-916.314655,0.00010516,2]
[423742102,1780363521000,571.09,0.00030136,120]
[423742105,1780363523000,169.86,0.00010442,2]
[423742103,1780363523000,-5000.0,0.00010569,2]
[423742106,1780363561000,-593.4,0.00010501,2]
[423742107,1780363576000,-166.38886999,0.00010564,2]
[423742109,1780363576000,176.82,9.92e-05,2]
[423742111,1780363576000,176.82,0.0001003,2]
[423742108,1780363576000,-600.56428902,0.00010636,2]
[423742112,1780363576000,176.82,0.00010085,2]
[423742110,1780363576000,176.82,9.975e-05,2]
[423742114,1780363576000,176.82,0.00010195,2]
[423742115,1780363576000,176.82,0.0001025,2]
[423742116,1780363576000,176.82,0.00010305,2]
[423742118,1780363576000,176.82,0.00010415,2]
[423742117,1780363576000,176.82,0.0001036,2]
[423742113,1780363576000,176.82,0.0001014,2]
[423742120,1780363581000,2214.35,0.00010309,2]
[423742122,1780363614000,-176.82,0.0001047,2]
[423742123,1780363641000,1000.0,0.0003013,120]
[423742124,1780363667000,-176.82,0.00010525,2]
[423742127,1780363720000,-176.82,0.00010579,2]
[423742128,1780363743000,2000.0,0.00030135,120]
[423742129,1780363749000,2410.88,0.00010335,2]
[423742130,1780363766000,-250.0,0.00010607,2]
[423742131,1780363785000,499.4,0.00030082,120]
[423742132,1780363811000,-500.0,0.00010621,2]
[423742133,1780363811000,200.0,0.00010359,2]
[423742134,1780363813000,802.22932407,0.0003013,120]
[423742135,1780363817000,471.06,0.00010359,2]
[423742144,1780363831000,-166.38886999,0.00010628,2]
[423742146,1780363831000,-176.82,0.00010689,2]
[423742145,1780363831000,-176.82,0.00010634,2]
[423742148,1780363832000,-1200.0,0.00010698,2]
[423742159,1780363832000,-618.20542942,0.000107,2]
[423742161,1780363832000,-326.80947795,0.000107,2]
[423742150,1780363832000,-500.0,0.00010699,2]
[423742164,1780363832000,-998.64220144,0.000107,2]
[423742163,1780363832000,-646.62018074,0.000107,2]
[423742154,1780363832000,-558.63987434,0.00010699,2]
[423742156,1780363832000,-534.83783418,0.000107,2]
[423742165,1780363832000,-1016.35862345,0.000107,2]
[423742167,1780363832000,-1271.14161176,0.000107,2]
[423742166,1780363832000,-859.784997,0.000107,2]
[423742168,1780363832000,-1951.87210122,0.000107,2]
[423742152,1780363832000,-500.0,0.00010699,2]
[423742200,1780363838000,-176.82,0.00010799,2]
[423742206,1780363838000,-150.0,0.00010959,2]
[423742207,1780363838000,-176.82,0.00010964,2]
[423742201,1780363838000,-199.69292774,0.00010809,7]
[423742203,1780363838000,-176.82,0.00010909,2]
[423742205,1780363838000,-4548.42,0.00010959,2]
[423742199,1780363838000,-555.54,0.00010777,2]
[423742198,1780363838000,-1789.5,0.00010745,2]
[423742208,1780363838000,-166.66,0.00010982,2]
[423742204,1780363838000,-195.64,0.00010917,2]
[423742194,1780363838000,-680.52658863,0.000107,2]
[423742196,1780363838000,-176.82,0.00010744,2]
[423742195,1780363838000,-27482.69208962,0.000107,2]
[423742182,1780363838000,-420.44932046,0.000107,2]
[423742197,1780363838000,-150.0,0.00010745,2]
[423742202,1780363838000,-176.82,0.00010854,2]
[423742209,1780363838000,-2000.0,0.00011093,2]
[423742212,1780363838000,-199.69292774,0.00011255,7]
[423742227,1780363838000,-6819.31498358,0.0001164,2]
[423742210,1780363838000,-188.03398748,0.00011099,2]
[423742224,1780363838000,-298.0059,0.0001164,2]
[423742225,1780363838000,-2500.0,0.0001164,2]
[423742223,1780363838000,-16263.17845325,0.0001164,2]
[423742221,1780363838000,-438.287393,0.0001164,2]
[423742222,1780363838000,-20085.41734178,0.0001164,2]
[423742218,1780363838000,-151.0,0.00011521,2]
[423742226,1780363838000,-1227.8852312,0.0001164,2]
[423742220,1780363838000,-250.0,0.00011637,2]
[423742214,1780363838000,-252.13010875,0.00011394,2]
[423742217,1780363838000,-195.64,0.00011449,2]
[423742211,1780363838000,-195.64,0.00011183,2]
[423742213,1780363838000,-212.19,0.00011315,2]
[423742216,1780363838000,-299.53939161,0.00011445,7]
[423742215,1780363838000,-3510.11478826,0.000114,2]
[423742219,1780363838000,-4176.6221,0.0001154,2]
[423742291,1780363839000,-169.0,0.00011832,2]
[423742273,1780363839000,-500.0,0.00011831,3]
[423742289,1780363839000,-159.951998,0.00011832,2]
[423742271,1780363839000,-169.0,0.00011831,2]
[423742277,1780363839000,-169.0,0.00011831,2]
[423742287,1780363839000,-159.951998,0.00011832,2]
[423742275,1780363839000,-169.0,0.00011831,2]
[423742279,1780363839000,-84546.6987801,0.00011832,2]
[423742281,1780363839000,-423366.0979105,0.00011832,2]
[423742293,1780363839000,-500.0,0.00011832,2]
[423742285,1780363839000,-159.951998,0.00011832,2]
[423742283,1780363839000,-159.951998,0.00011832,2]
[423742298,1780363839000,-35427.6902365,0.0001184,2]
[423742306,1780363839000,-1227.88523118,0.00012106,2]
[423742296,1780363839000,-2084.22995355,0.0001184,2]
[423742312,1780363839000,-169.86,0.00012182,2]
[423742309,1780363839000,-493.69,0.00012163,2]
[423742302,1780363839000,-20085.41734174,0.00012002,2]
[423742313,1780363839000,-438.28739298,0.00012183,2]
[423742314,1780363839000,-576.89462539,0.00012324,2]
[423742304,1780363839000,-16263.17845324,0.00012002,2]
[423742308,1780363839000,-160.0,0.00012152,2]
[423742317,1780363839000,-215.65015035,0.00012341,2]
[423742315,1780363839000,-156.78,0.00012329,2]
[423742318,1780363839000,-151.0,0.00012351,2]
[423742319,1780363839000,-151.71,0.00012355,2]
[423742269,1780363839000,-1500.0,0.00011831,2]
[423742300,1780363839000,-292.94514206,0.00011917,7]
[423742250,1780363839000,-300.0,0.00011831,2]
[423742243,1780363839000,-1500.0,0.0001174,2]
[423742252,1780363839000,-408526.1699271,0.00011831,2]
[423742228,1780363839000,-500.0,0.00011668,2]
[423742229,1780363839000,-335.45867998,0.00011668,2]
[423742230,1780363839000,-223.13192573,0.00011681,2]
[423742231,1780363839000,-223.13192572,0.00011681,2]
[423742234,1780363839000,-5000.0,0.00011683,2]
[423742235,1780363839000,-195.64,0.00011716,2]
[423742323,1780363839000,-151.0,0.00012355,2]
[423742233,1780363839000,-237.0025551,0.00011682,2]
[423742244,1780363839000,-500.0,0.0001174,3]
[423742242,1780363839000,-250.0,0.0001174,2]
[423742232,1780363839000,-252.65741259,0.00011682,2]
[423742236,1780363839000,-362.3540378,0.0001173,2]
[423742245,1780363839000,-500.0,0.0001174,3]
[423742254,1780363839000,-190329.5425794,0.00011831,2]
[423742238,1780363839000,-300.0,0.00011739,2]
[423742237,1780363839000,-151.0,0.00011737,2]
[423742240,1780363839000,-300.0,0.00011739,2]
[423742241,1780363839000,-1332351.60630843,0.0001174,2]
[423742246,1780363839000,-1680.0,0.00011768,2]
[423742258,1780363839000,-159.951998,0.00011831,2]
[423742256,1780363839000,-19473.0765477,0.00011831,2]
[423742262,1780363839000,-27435.929561,0.00011831,2]
[423742260,1780363839000,-159.951998,0.00011831,2]
[423742264,1780363839000,-159.951998,0.00011831,2]
[423742266,1780363839000,-159.951998,0.00011831,2]
[423742247,1780363839000,-169.0,0.00011829,2]
[423742248,1780363839000,-151.0,0.00011829,2]
[423742249,1780363839000,-300.0,0.0001183,2]
[423742239,1780363839000,-666.0,0.00011739,2]
[423742326,1780363839000,-288.94,0.00012355,2]
[423742375,1780363839000,-500.0,0.00012424,2]
[423742321,1780363839000,-151.0,0.00012355,2]
[423742363,1780363839000,-150.0,0.00012424,2]
[423742353,1780363839000,-500.0,0.00012424,2]
[423742356,1780363839000,-500.0,0.00012424,2]
[423742360,1780363839000,-150.0,0.00012424,2]
[423742358,1780363839000,-500.0,0.00012424,2]
[423742359,1780363839000,-338.00061309,0.00012424,2]
[423742355,1780363839000,-150.0,0.00012424,2]
[423742357,1780363839000,-500.0,0.00012424,2]
[423742361,1780363839000,-500.0,0.00012424,2]
[423742364,1780363839000,-500.0,0.00012424,2]
[423742365,1780363839000,-500.0,0.00012424,2]
[423742368,1780363839000,-500.0,0.00012424,2]
[423742376,1780363839000,-500.0,0.00012424,2]
[423742367,1780363839000,-534.04255896,0.00012424,2]
[423742369,1780363839000,-150.0,0.00012424,2]
[423742366,1780363839000,-250.0,0.00012424,2]
[423742373,1780363839000,-500.0,0.00012424,2]
[423742372,1780363839000,-386.84986946,0.00012424,2]
[423742370,1780363839000,-500.0,0.00012424,2]
[423742371,1780363839000,-193.97666921,0.00012424,2]
[423742378,1780363839000,-500.0,0.00012424,2]
[423742380,1780363839000,-500.0,0.00012424,2]
[423742381,1780363839000,-500.0,0.00012424,2]
[423742379,1780363839000,-500.0,0.00012424,2]
[423742377,1780363839000,-500.0,0.00012424,2]
[423742382,1780363839000,-500.0,0.00012424,2]
[423742324,1780363839000,-195.81,0.00012355,2]
[423742354,1780363839000,-500.0,0.00012424,2]
[423742351,1780363839000,-500.0,0.00012424,2]
[423742374,1780363839000,-500.0,0.00012424,2]
[423742352,1780363839000,-150.0,0.00012424,2]
[423742322,1780363839000,-151.0,0.00012355,2]
[423742320,1780363839000,-151.0,0.00012355,2]
[423742325,1780363839000,-151.0,0.00012355,2]
[423742316,1780363839000,-499.4,0.00012329,2]
[423742328,1780363839000,-151.0,0.00012356,2]
[423742338,1780363839000,-500.0,0.00012424,2]
[423742327,1780363839000,-151.0,0.00012355,2]
[423742329,1780363839000,-159.951998,0.00012364,2]
[423742330,1780363839000,-159.951998,0.00012364,2]
[423742331,1780363839000,-159.951998,0.00012364,2]
[423742333,1780363839000,-20085.41734174,0.00012364,2]
[423742332,1780363839000,-159.951998,0.00012364,2]
[423742336,1780363839000,-500.0,0.00012424,2]
[423742337,1780363839000,-500.0,0.00012424,2]
[423742362,1780363839000,-500.0,0.00012424,2]
[423742335,1780363839000,-500.0,0.00012424,2]
[423742334,1780363839000,-16263.17845324,0.00012364,2]
[423742347,1780363839000,-500.0,0.00012424,2]
[423742350,1780363839000,-500.0,0.00012424,2]
[423742346,1780363839000,-500.0,0.00012424,2]
[423742349,1780363839000,-500.0,0.00012424,2]
[423742348,1780363839000,-150.0,0.00012424,2]
[423742340,1780363839000,-500.0,0.00012424,2]
[423742342,1780363839000,-500.0,0.00012424,2]
[423742344,1780363839000,-500.0,0.00012424,2]
[423742341,1780363839000,-500.0,0.00012424,2]
[423742343,1780363839000,-500.0,0.00012424,2]
[423742339,1780363839000,-500.0,0.00012424,2]
[423742345,1780363839000,-179.15137862,0.00012424,2]
[423742421,1780363840000,-500.0,0.00012424,2]
[423742425,1780363840000,-500.0,0.00012424,2]
[423742424,1780363840000,-500.0,0.00012424,2]
[423742418,1780363840000,-500.0,0.00012424,2]
[423742419,1780363840000,-500.0,0.00012424,2]
[423742416,1780363840000,-1221.0,0.00012424,2]
[423742420,1780363840000,-500.0,0.00012424,2]
[423742423,1780363840000,-500.0,0.00012424,2]
[423742415,1780363840000,-500.0,0.00012424,2]
[423742417,1780363840000,-500.0,0.00012424,2]
[423742426,1780363840000,-1221.0,0.00012424,2]
[423742422,1780363840000,-500.0,0.00012424,2]
[423742427,1780363840000,-500.0,0.00012424,2]
[423742429,1780363840000,-500.0,0.00012424,2]
[423742437,1780363840000,-174.37069545,0.00012424,2]
[423742434,1780363840000,-500.0,0.00012424,2]
[423742432,1780363840000,-500.0,0.00012424,2]
[423742430,1780363840000,-1221.0,0.00012424,2]
[423742433,1780363840000,-537.33389924,0.00012424,2]
[423742428,1780363840000,-500.0,0.00012424,2]
[423742436,1780363840000,-150.0,0.00012424,2]
[423742438,1780363840000,-1221.0,0.00012424,2]
[423742439,1780363840000,-150.0,0.00012424,2]
[423742441,1780363840000,-150.0,0.00012424,2]
[423742444,1780363840000,-1221.0,0.00012424,2]
[423742442,1780363840000,-150.0,0.00012424,2]
[423742413,1780363840000,-1221.0,0.00012424,2]
[423742435,1780363840000,-1221.0,0.00012424,2]
[423742408,1780363840000,-1221.0,0.00012424,2]
[423742397,1780363840000,-1221.0,0.00012424,2]
[423742411,1780363840000,-500.0,0.00012424,2]
[423742389,1780363840000,-1221.0,0.00012424,2]
[423742388,1780363840000,-200.0,0.00012424,2]
[423742383,1780363840000,-150.0,0.00012424,2]
[423742386,1780363840000,-1221.0,0.00012424,2]
[423742384,1780363840000,-150.0,0.00012424,2]
[423742385,1780363840000,-150.0,0.00012424,2]
[423742387,1780363840000,-500.0,0.00012424,2]
[423742390,1780363840000,-500.0,0.00012424,2]
[423742391,1780363840000,-1221.0,0.00012424,2]
[423742400,1780363840000,-500.0,0.00012424,2]
[423742402,1780363840000,-500.0,0.00012424,2]
[423742401,1780363840000,-1221.0,0.00012424,2]
[423742393,1780363840000,-1221.0,0.00012424,2]
[423742410,1780363840000,-1221.0,0.00012424,2]
[423742394,1780363840000,-1221.0,0.00012424,2]
[423742443,1780363840000,-150.0,0.00012424,2]
[423742399,1780363840000,-1221.0,0.00012424,2]
[423742395,1780363840000,-1221.0,0.00012424,2]
[423742398,1780363840000,-1221.0,0.00012424,2]
[423742396,1780363840000,-1221.0,0.00012424,2]
[423742403,1780363840000,-1221.0,0.00012424,2]
[423742405,1780363840000,-1221.0,0.00012424,2]
[423742407,1780363840000,-500.0,0.00012424,2]
[423742414,1780363840000,-500.0,0.00012424,2]
[423742404,1780363840000,-500.0,0.00012424,2]
[423742406,1780363840000,-150.0,0.00012424,2]
[423742409,1780363840000,-278.88036096,0.00012424,2]
[423742412,1780363840000,-500.0,0.00012424,2]
[423742392,1780363840000,-305.81144099,0.00012424,2]
[423742447,1780363840000,-1238.45177235,0.00012424,2]
[423742431,1780363840000,-500.0,0.00012424,2]
[423742445,1780363840000,-250.0,0.00012424,2]
[423742479,1780363840000,-151.0,0.00013178,2]
[423742490,1780363840000,-1192.0,0.00013268,2]
[423742481,1780363840000,-250.0,0.00013193,2]
[423742486,1780363840000,-315.0,0.000132,2]
[423742480,1780363840000,-202.809659,0.00013182,2]
[423742483,1780363840000,-887.0,0.000132,2]
[423742482,1780363840000,-350.0,0.000132,2]
[423742485,1780363840000,-1000.0,0.000132,2]
[423742487,1780363840000,-1241.8,0.0001324,2]
[423742489,1780363840000,-706.0,0.00013268,2]
[423742484,1780363840000,-309.0,0.000132,2]
[423742488,1780363840000,-1254.0,0.00013268,2]
[423742498,1780363840000,-700.0,0.00013356,2]
[423742491,1780363840000,-213.0,0.00013268,2]
[423742500,1780363840000,-20085.41734174,0.00013451,2]
[423742499,1780363840000,-1591.0,0.000134,2]
[423742501,1780363840000,-16263.17845324,0.00013451,2]
[423742492,1780363840000,-487.0,0.00013268,2]
[423742493,1780363840000,-1651.0,0.00013268,2]
[423742494,1780363840000,-2059.0,0.00013268,2]
[423742503,1780363840000,-150.0,0.00013488,2]
[423742502,1780363840000,-3560.889,0.00013463,2]
[423742495,1780363840000,-438.28739298,0.0001327,2]
[423742497,1780363840000,-500.0,0.00013356,2]
[423742496,1780363840000,-200.0,0.00013341,2]
[423742507,1780363840000,-150.0,0.00013488,2]
[423742504,1780363840000,-150.0,0.00013488,2]
[423742506,1780363840000,-150.0,0.00013488,2]
[423742446,1780363840000,-1221.0,0.00012424,2]
[423742478,1780363840000,-151.0,0.00013178,2]
[423742471,1780363840000,-16263.17845324,0.00013089,2]
[423742505,1780363840000,-150.0,0.00013488,2]
[423742469,1780363840000,-200.0,0.00013082,2]
[423742475,1780363840000,-159.951998,0.00013089,2]
[423742451,1780363840000,-2274.60278587,0.00012623,2]
[423742440,1780363840000,-150.0,0.00012424,2]
[423742448,1780363840000,-169.95193931,0.00012424,2]
[423742449,1780363840000,-2000.0,0.0001248,2]
[423742452,1780363840000,-292.16608246,0.00012623,2]
[423742457,1780363840000,-32965.38747936,0.0001281,2]
[423742464,1780363840000,-153.60264733,0.0001293,2]
[423742462,1780363840000,-500.0,0.0001285,2]
[423742460,1780363840000,-200.0,0.00012827,2]
[423742459,1780363840000,-257.725,0.00012824,2]
[423742454,1780363840000,-438.28739298,0.00012727,2]
[423742455,1780363840000,-20085.41734174,0.00012727,2]
[423742453,1780363840000,-1181.8371928,0.00012715,2]
[423742450,1780363840000,-2212.70631851,0.00012623,2]
[423742474,1780363840000,-159.951998,0.00013089,2]
[423742458,1780363840000,-3784.408,0.00012815,2]
[423742456,1780363840000,-16263.17845324,0.00012727,2]
[423742463,1780363840000,-3657.0945,0.00012902,2]
[423742466,1780363840000,-3512.31211197,0.0001305,2]
[423742476,1780363840000,-964.0,0.00013117,5]
[423742465,1780363840000,-2351.0,0.00012945,2]
[423742477,1780363840000,-775.0,0.00013117,5]
[423742472,1780363840000,-159.951998,0.00013089,2]
[423742461,1780363840000,-241.060116,0.00012827,2]
[423742468,1780363840000,-150.0,0.00013082,2]
[423742467,1780363840000,-150.0,0.00013082,2]
[423742470,1780363840000,-20085.41734174,0.00013089,2]
[423742473,1780363840000,-159.951998,0.00013089,2]
[423742548,1780363841000,-500.0,0.00013698,2]
[423742550,1780363841000,-500.0,0.00013698,2]
[423742569,1780363841000,-204.15869689,0.00013698,2]
[423742551,1780363841000,-264.38768684,0.00013698,2]
[423742546,1780363841000,-500.0,0.00013698,2]
[423742545,1780363841000,-500.0,0.00013698,2]
[423742534,1780363841000,-151.0,0.00013698,2]
[423742553,1780363841000,-500.0,0.00013698,2]
[423742543,1780363841000,-500.0,0.00013698,2]
[423742552,1780363841000,-500.0,0.00013698,2]
[423742541,1780363841000,-500.0,0.00013698,2]
[423742542,1780363841000,-500.0,0.00013698,2]
[423742544,1780363841000,-500.0,0.00013698,2]
[423742549,1780363841000,-500.0,0.00013698,2]
[423742556,1780363841000,-500.0,0.00013698,2]
[423742566,1780363841000,-500.0,0.00013698,2]
[423742555,1780363841000,-500.0,0.00013698,2]
[423742554,1780363841000,-500.0,0.00013698,2]
[423742567,1780363841000,-500.0,0.00013698,2]
[423742557,1780363841000,-500.0,0.00013698,2]
[423742561,1780363841000,-500.0,0.00013698,2]
[423742564,1780363841000,-500.0,0.00013698,2]
[423742558,1780363841000,-500.0,0.00013698,2]
[423742562,1780363841000,-500.0,0.00013698,2]
[423742563,1780363841000,-500.0,0.00013698,2]
[423742560,1780363841000,-500.0,0.00013698,2]
[423742559,1780363841000,-500.0,0.00013698,2]
[423742539,1780363841000,-500.0,0.00013698,2]
[423742547,1780363841000,-500.0,0.00013698,2]
[423742537,1780363841000,-500.0,0.00013698,2]
[423742520,1780363841000,-576.89462537,0.00013612,2]
[423742538,1780363841000,-500.0,0.00013698,2]
[423742568,1780363841000,-500.0,0.00013698,2]
[423742513,1780363841000,-150.0,0.00013581,2]
[423742508,1780363841000,-150.0,0.00013488,2]
[423742511,1780363841000,-150.0,0.00013535,2]
[423742510,1780363841000,-350.0,0.00013517,2]
[423742514,1780363841000,-15000.0,0.00013583,2]
[423742509,1780363841000,-150.0,0.00013488,2]
[423742515,1780363841000,-159.951998,0.00013583,2]
[423742512,1780363841000,-6111.0,0.00013574,2]
[423742517,1780363841000,-159.951998,0.00013583,2]
[423742527,1780363841000,-151.0,0.00013646,2]
[423742528,1780363841000,-151.0,0.00013666,2]
[423742523,1780363841000,-150.0,0.00013628,2]
[423742536,1780363841000,-500.0,0.00013698,2]
[423742521,1780363841000,-150.0,0.00013613,2]
[423742522,1780363841000,-1069.1466,0.0001362,2]
[423742525,1780363841000,-15000.0,0.0001363,2]
[423742516,1780363841000,-159.951998,0.00013583,2]
[423742519,1780363841000,-473.75,0.00013608,2]
[423742518,1780363841000,-159.951988,0.00013583,2]
[423742524,1780363841000,-4833.36414123,0.00013629,2]
[423742529,1780363841000,-150.0,0.00013675,2]
[423742530,1780363841000,-150.0,0.00013675,2]
[423742533,1780363841000,-151.0,0.00013695,2]
[423742532,1780363841000,-151.0,0.00013695,2]
[423742540,1780363841000,-500.0,0.00013698,2]
[423742531,1780363841000,-493.69,0.00013683,2]
[423742535,1780363841000,-475.61764834,0.00013698,2]
[423742526,1780363841000,-15000.0,0.00013645,2]
[423742575,1780363841000,-563.59,0.00013698,2]
[423742617,1780363841000,-151.0,0.00013699,2]
[423742573,1780363841000,-500.0,0.00013698,2]
[423742601,1780363841000,-500.0,0.00013698,2]
[423742607,1780363841000,-993.08,0.00013698,2]
[423742608,1780363841000,-993.08,0.00013698,2]
[423742619,1780363841000,-151.0,0.00013699,2]
[423742618,1780363841000,-151.0,0.00013699,2]
[423742609,1780363841000,-993.08,0.00013698,2]
[423742611,1780363841000,-993.08,0.00013698,2]
[423742610,1780363841000,-993.08,0.00013698,2]
[423742615,1780363841000,-151.0,0.00013699,2]
[423742616,1780363841000,-151.0,0.00013699,2]
[423742612,1780363841000,-993.08,0.00013698,2]
[423742614,1780363841000,-993.08,0.00013698,2]
[423742613,1780363841000,-993.08,0.00013698,2]
[423742598,1780363841000,-500.0,0.00013698,2]
[423742630,1780363841000,-151.0,0.00013699,2]
[423742622,1780363841000,-151.0,0.00013699,2]
[423742620,1780363841000,-151.0,0.00013699,2]
[423742631,1780363841000,-151.0,0.00013699,2]
[423742621,1780363841000,-151.0,0.00013699,2]
[423742624,1780363841000,-151.0,0.00013699,2]
[423742626,1780363841000,-151.0,0.00013699,2]
[423742628,1780363841000,-151.0,0.00013699,2]
[423742623,1780363841000,-151.0,0.00013699,2]
[423742627,1780363841000,-151.0,0.00013699,2]
[423742625,1780363841000,-151.0,0.00013699,2]
[423742571,1780363841000,-500.0,0.00013698,2]
[423742633,1780363841000,-151.0,0.00013699,2]
[423742634,1780363841000,-151.0,0.00013699,2]
[423742629,1780363841000,-151.0,0.00013699,2]
[423742596,1780363841000,-500.0,0.00013698,2]
[423742632,1780363841000,-151.0,0.00013699,2]
[423742602,1780363841000,-500.0,0.00013698,2]
[423742600,1780363841000,-500.0,0.00013698,2]
[423742570,1780363841000,-500.0,0.00013698,2]
[423742574,1780363841000,-500.0,0.00013698,2]
[423742578,1780363841000,-500.0,0.00013698,2]
[423742576,1780363841000,-500.0,0.00013698,2]
[423742577,1780363841000,-500.0,0.00013698,2]
[423742580,1780363841000,-500.0,0.00013698,2]
[423742582,1780363841000,-1789.41,0.00013698,2]
[423742585,1780363841000,-1789.41,0.00013698,2]
[423742583,1780363841000,-1789.41,0.00013698,2]
[423742586,1780363841000,-1789.41,0.00013698,2]
[423742584,1780363841000,-1789.41,0.00013698,2]
[423742587,1780363841000,-1789.41,0.00013698,2]
[423742589,1780363841000,-1789.41,0.00013698,2]
[423742572,1780363841000,-645.18,0.00013698,2]
[423742591,1780363841000,-822.85,0.00013698,2]
[423742599,1780363841000,-500.0,0.00013698,2]
[423742597,1780363841000,-500.0,0.00013698,2]
[423742603,1780363841000,-500.0,0.00013698,2]
[423742595,1780363841000,-500.0,0.00013698,2]
[423742606,1780363841000,-993.08,0.00013698,2]
[423742605,1780363841000,-993.08,0.00013698,2]
[423742579,1780363841000,-500.0,0.00013698,2]
[423742604,1780363841000,-500.0,0.00013698,2]
[423742593,1780363841000,-500.0,0.00013698,2]
[423742588,1780363841000,-1789.41,0.00013698,2]
[423742581,1780363841000,-1789.41,0.00013698,2]
[423742592,1780363841000,-500.0,0.00013698,2]
[423742594,1780363841000,-500.0,0.00013698,2]
[423742590,1780363841000,-1789.41,0.00013698,2]
[423742663,1780363842000,-227.092168,0.00013699,2]
[423742668,1780363842000,-227.092168,0.00013699,2]
[423742669,1780363842000,-227.092168,0.00013699,2]
[423742671,1780363842000,-227.092168,0.00013699,2]
[423742672,1780363842000,-227.092168,0.00013699,2]
[423742677,1780363842000,-227.092168,0.00013699,2]
[423742675,1780363842000,-227.092168,0.00013699,2]
[423742676,1780363842000,-227.092168,0.00013699,2]
[423742674,1780363842000,-227.092168,0.00013699,2]
[423742673,1780363842000,-227.092168,0.00013699,2]
[423742678,1780363842000,-227.092168,0.00013699,2]
[423742670,1780363842000,-227.092168,0.00013699,2]
[423742681,1780363842000,-200.0,0.00013699,2]
[423742637,1780363842000,-151.0,0.00013699,2]
[423742682,1780363842000,-500.0,0.00013699,2]
[423742684,1780363842000,-1613.87294298,0.00013699,2]
[423742683,1780363842000,-1613.87294298,0.00013699,2]
[423742693,1780363842000,-1613.87294298,0.00013699,2]
[423742686,1780363842000,-1613.87294298,0.00013699,2]
[423742687,1780363842000,-1613.87294298,0.00013699,2]
[423742688,1780363842000,-1613.87294298,0.00013699,2]
[423742689,1780363842000,-1613.87294298,0.00013699,2]
[423742690,1780363842000,-1613.87294298,0.00013699,2]
[423742691,1780363842000,-1613.87294298,0.00013699,2]
[423742703,1780363842000,-1613.87294298,0.00013699,2]
[423742660,1780363842000,-166.66,0.00013699,2]
[423742679,1780363842000,-227.092168,0.00013699,2]
[423742685,1780363842000,-1613.87294298,0.00013699,2]
[423742650,1780363842000,-151.0,0.00013699,2]
[423742662,1780363842000,-227.092168,0.00013699,2]
[423742704,1780363842000,-1613.87294298,0.00013699,2]
[423742644,1780363842000,-151.0,0.00013699,2]